[Event "Latvijas 2022. gada jauniešu čempionāta fināls"]
[Site "Riga, Latvia"]
[Date "2022.06.15"]
[Round "6.18"]
[White "Steiners, Emils"]
[Black "Valdats, Reinis"]
[Result "0-1"]
[TimeControl "3600+30"]
[WhiteElo "1601"]
[BlackElo "1488"]

1. e4 {[%clk 01:00:58]} {[%emt 00:00:02]} c5 {[%clk 01:00:57]} {[%emt
00:00:04]} 2. d4 {[%clk 01:01:22]} {[%emt 00:00:05]} cxd4 {[%clk 01:01:23]}
{[%emt 00:00:04]} 3. c3 {[%clk 01:01:42]} {[%emt 00:00:09]} dxc3 {[%clk
01:01:49]} {[%emt 00:00:04]} 4. Nxc3 {[%clk 01:02:02]} {[%emt 00:00:10]} Nc6
{[%clk 01:02:18]} {[%emt 00:00:02]} 5. Nf3 {[%clk 01:02:08]} {[%emt 00:00:24]}
e6 {[%clk 01:02:41]} {[%emt 00:00:06]} 6. Bc4 {[%clk 01:02:28]} {[%emt
00:00:10]} a6 {[%clk 01:03:08]} {[%emt 00:00:04]} 7. O-O {[%clk 01:02:40]}
{[%emt 00:00:17]} Nge7 {[%clk 01:03:35]} {[%emt 00:00:02]} 8. Re1 {[%clk
01:01:37]} {[%emt 00:01:33]} b5 {[%clk 01:02:41]} {[%emt 00:01:25]} 9. Bb3
{[%clk 01:01:58]} {[%emt 00:00:09]} Ng6 {[%clk 01:02:50]} {[%emt 00:00:20]} 10.
e5 {[%clk 00:53:47]} {[%emt 00:08:42]} Be7 {[%clk 00:54:29]} {[%emt 00:08:51]}
11. Bc2 {[%clk 00:46:34]} {[%emt 00:07:42]} Bb7 {[%clk 00:52:47]} {[%emt
00:02:12]} 12. b3 {[%clk 00:40:10]} {[%emt 00:06:55]} O-O {[%clk 00:52:33]}
{[%emt 00:00:44]} 13. Bxg6 {[%clk 00:36:21]} {[%emt 00:04:18]} hxg6 {[%clk
00:52:36]} {[%emt 00:00:27]} 14. h4 {[%clk 00:35:09]} {[%emt 00:01:42]} d6
{[%clk 00:49:58]} {[%emt 00:03:09]} 15. Qe2 {[%clk 00:27:53]} {[%emt 00:07:46]}
Nxe5 {[%clk 00:49:24]} {[%emt 00:01:04]} 16. Nxe5 {[%clk 00:27:25]} {[%emt
00:00:58]} dxe5 {[%clk 00:49:50]} {[%emt 00:00:04]} 17. h5 {[%clk 00:27:14]}
{[%emt 00:00:41]} gxh5 {[%clk 00:35:33]} {[%emt 00:14:47]} 18. Qxh5 {[%clk
00:26:39]} {[%emt 00:01:04]} Qd4 {[%clk 00:35:25]} {[%emt 00:00:38]} 19. Bb2
{[%clk 00:25:47]} {[%emt 00:01:23]} Qh4 {[%clk 00:31:47]} {[%emt 00:04:07]} 20.
Qxe5 {[%clk 00:24:03]} {[%emt 00:02:14]} Qg5 {[%clk 00:32:04]} {[%emt
00:00:14]} 21. Qh2 {[%clk 00:16:26]} {[%emt 00:07:52]} Bf6 {[%clk 00:27:59]}
{[%emt 00:04:50]} 22. Re3 {[%clk 00:13:48]} {[%emt 00:03:08]} g6 {[%clk
00:23:44]} {[%emt 00:04:44]} 23. Rae1 {[%clk 00:06:11]} {[%emt 00:08:07]} Kg7
{[%clk 00:09:00]} {[%emt 00:15:14]} 24. Ne4 {[%clk 00:04:58]} {[%emt 00:01:44]}
Bxe4 {[%clk 00:09:22]} {[%emt 00:00:08]} 25. Bxf6+ {[%clk 00:05:19]} {[%emt
00:00:09]} Qxf6 {[%clk 00:09:38]} {[%emt 00:00:13]} 26. Rxe4 {[%clk 00:05:42]}
{[%emt 00:00:08]} Rh8 {[%clk 00:09:21]} {[%emt 00:00:47]} 27. Qe5 {[%clk
00:05:19]} {[%emt 00:00:53]} Qxe5 {[%clk 00:08:37]} {[%emt 00:01:15]} 28. Rxe5
{[%clk 00:05:31]} {[%emt 00:00:17]} Rac8 {[%clk 00:08:53]} {[%emt 00:00:14]} 29.
a4 {[%clk 00:04:40]} {[%emt 00:01:22]} bxa4 {[%clk 00:06:59]} {[%emt 00:02:24]}
30. bxa4 {[%clk 00:05:04]} {[%emt 00:00:05]} Kf6 {[%clk 00:06:20]} {[%emt
00:01:09]} 31. g3 {[%clk 00:04:45]} {[%emt 00:00:49]} Rhd8 {[%clk 00:06:16]}
{[%emt 00:00:34]} 32. Kg2 {[%clk 00:04:26]} {[%emt 00:00:48]} Rd5 {[%clk
00:06:19]} {[%emt 00:00:27]} 33. R5e4 {[%clk 00:03:32]} {[%emt 00:01:25]} e5
{[%clk 00:05:08]} {[%emt 00:01:41]} 34. Rb4 {[%clk 00:02:06]} {[%emt 00:01:56]}
Rc6 {[%clk 00:04:59]} {[%emt 00:00:40]} 35. Reb1 {[%clk 00:02:01]} {[%emt
00:00:34]} Ke6 {[%clk 00:05:03]} {[%emt 00:00:26]} 36. Rb6 {[%clk 00:01:58]}
{[%emt 00:00:32]} Rxb6 {[%clk 00:04:30]} {[%emt 00:01:04]} 37. Rxb6+ {[%clk
00:02:24]} {[%emt 00:00:04]} Rd6 {[%clk 00:04:55]} {[%emt 00:00:05]} 38. Rb7
{[%clk 00:02:27]} {[%emt 00:00:26]} e4 {[%clk 00:04:39]} {[%emt 00:00:47]} 39.
Kf1 {[%clk 00:02:39]} {[%emt 00:00:18]} f5 {[%clk 00:04:56]} {[%emt 00:00:13]}
40. Ke2 {[%clk 00:02:56]} {[%emt 00:00:13]} Kd5 {[%clk 00:05:17]} {[%emt
00:00:08]} 41. f3 {[%clk 00:02:32]} {[%emt 00:00:55]} Re6 {[%clk 00:04:36]}
{[%emt 00:01:12]} 42. fxe4+ {[%clk 00:01:36]} {[%emt 00:01:26]} Rxe4+ {[%clk
00:04:52]} {[%emt 00:00:15]} 43. Kf3 {[%clk 00:01:57]} {[%emt 00:00:08]} g5
{[%clk 00:04:06]} {[%emt 00:01:16]} 44. a5 {[%clk 00:00:53]} {[%emt 00:01:34]}
g4+ {[%clk 00:04:03]} {[%emt 00:00:33]} 45. Kf2 {[%clk 00:01:07]} {[%emt
00:00:16]} Ra4 {[%clk 00:04:21]} {[%emt 00:00:12]} 46. Ke3 {[%clk 00:00:48]}
{[%emt 00:00:48]} Rxa5 {[%clk 00:03:59]} {[%emt 00:00:54]} 47. Kf4 {[%clk
00:01:08]} {[%emt 00:00:09]} Kd4 {[%clk 00:01:57]} {[%emt 00:02:16]} 48. Rb6
{[%clk 00:01:26]} {[%emt 00:00:28]} Kc5 {[%clk 00:01:01]} {[%emt 00:01:26]} 49.
Rf6 {[%clk 00:01:27]} {[%emt 00:00:30]} Kb4 {[%clk 00:01:11]} {[%emt 00:00:19]}
50. Rb6+ {[%clk 00:01:47]} {[%emt 00:00:10]} Kc4 {[%clk 00:01:34]} {[%emt
00:00:07]} 51. Rc6+ {[%clk 00:01:51]} {[%emt 00:00:23]} Kb5 {[%clk 00:01:40]}
{[%emt 00:00:26]} 52. Rf6 {[%clk 00:02:13]} {[%emt 00:00:08]} Kc4 {[%clk
00:01:37]} {[%emt 00:00:27]} 53. Rc6+ {[%clk 00:02:39]} {[%emt 00:00:10]} Kd3
{[%clk 00:01:42]} {[%emt 00:00:24]} 54. Rb6 {[%clk 00:02:52]} {[%emt 00:00:16]}
Kd2 {[%clk 00:01:36]} {[%emt 00:00:37]} 55. Rb2+ {[%clk 00:03:09]} {[%emt
00:00:13]} Kc1 {[%clk 00:01:55]} {[%emt 00:00:13]} 56. Rb6 {[%clk 00:03:31]}
{[%emt 00:00:07]} Kd2 {[%clk 00:02:05]} {[%emt 00:00:20]} 57. Rb2+ {[%clk
00:03:51]} {[%emt 00:00:10]} Ke1 {[%clk 00:02:31]} {[%emt 00:00:04]} 58. Rb1+
{[%clk 00:04:11]} {[%emt 00:00:10]} Kf2 {[%clk 00:02:56]} {[%emt 00:00:05]} 59.
Rb2+ {[%clk 00:04:33]} {[%emt 00:00:08]} Kg1 {[%clk 00:03:22]} {[%emt
00:00:05]} 60. Rb6 {[%clk 00:02:43]} {[%emt 00:02:43]} Kh2 {[%clk 00:03:47]}
{[%emt 00:00:05]} 61. Rb3 {[%clk 00:01:19]} {[%emt 00:01:54]} Rb5 {[%clk
00:03:56]} {[%emt 00:00:22]} 62. Ra3 {[%clk 00:01:32]} {[%emt 00:00:15]} a5
{[%clk 00:04:16]} {[%emt 00:00:11]} 63. Ra2+ {[%clk 00:01:52]} {[%emt
00:00:10]} Kh3 {[%clk 00:04:41]} {[%emt 00:00:05]} 64. Ra3 {[%clk 00:02:03]}
{[%emt 00:00:19]} Rb4+ {[%clk 00:03:22]} {[%emt 00:01:50]} 65. Kxf5 {[%clk
00:02:24]} {[%emt 00:00:09]} a4 {[%clk 00:03:50]} {[%emt 00:00:02]} 66. Kg5
{[%clk 00:02:09]} {[%emt 00:00:43]} Rb3 {[%clk 00:04:08]} {[%emt 00:00:13]} 67.
Rxa4 {[%clk 00:02:30]} {[%emt 00:00:09]} Rxg3 {[%clk 00:04:36]} {[%emt
00:00:02]} 68. Kh5 {[%clk 00:01:41]} {[%emt 00:01:19]} Rg2 {[%clk 00:04:51]}
{[%emt 00:00:15]} 69. Rb4 {[%clk 00:01:56]} {[%emt 00:00:15]} Rg1 {[%clk
00:04:47]} {[%emt 00:00:34]} 70. Rb3+ {[%clk 00:00:38]} {[%emt 00:01:48]} g3
{[%clk 00:05:09]} {[%emt 00:00:08]} 71. Kg5 {[%clk 00:00:40]} {[%emt 00:00:27]}
Rf1 {[%clk 00:05:19]} {[%emt 00:00:20]} 72. Kh5 {[%clk 00:00:35]} {[%emt
00:00:35]} Rf5+ {[%clk 00:05:34]} {[%emt 00:00:16]} 73. Kg6 {[%clk 00:00:56]}
{[%emt 00:00:09]} Ra5 {[%clk 00:06:01]} {[%emt 00:00:03]} 74. Rc3 {[%clk
00:01:08]} {[%emt 00:00:18]} Kh2 {[%clk 00:06:27]} {[%emt 00:00:05]} 75. Rc2+
{[%clk 00:01:19]} {[%emt 00:00:18]} g2 {[%clk 00:06:53]} {[%emt 00:00:03]} 76.
Rd2 {[%clk 00:01:33]} {[%emt 00:00:16]} Kh1 {[%clk 00:07:12]} {[%emt 00:00:10]}
77. Rd1+ {[%clk 00:01:56]} {[%emt 00:00:09]} g1=Q+ {[%clk 00:07:34]} {[%emt
00:00:08]} 0-1

[Event "Latvijas 2022. gada jauniešu čempionāta fināls"]
[Site "Riga, Latvia"]
[Date "2022.06.15"]
[Round "6.19"]
[White "Germanovs, Georgijs"]
[Black "Francs, Marats"]
[Result "1/2-1/2"]
[TimeControl "3600+30"]
[WhiteElo "1750"]
[BlackElo "1882"]

1. d4 {[%clk 00:57:11]} {[%emt 00:03:48]} Nf6 {[%clk 01:00:52]} {[%emt
00:00:08]} 2. Nf3 {[%clk 00:57:24]} {[%emt 00:00:18]} e6 {[%clk 01:01:13]}
{[%emt 00:00:09]} 3. Bf4 {[%clk 00:57:42]} {[%emt 00:00:12]} b6 {[%clk
01:01:28]} {[%emt 00:00:15]} 4. e3 {[%clk 00:58:01]} {[%emt 00:00:11]} Bb7
{[%clk 01:01:45]} {[%emt 00:00:12]} 5. Nbd2 {[%clk 00:58:25]} {[%emt 00:00:06]}
Nh5 {[%clk 01:01:45]} {[%emt 00:00:30]} 6. Bg5 {[%clk 00:58:49]} {[%emt
00:00:06]} Be7 {[%clk 01:02:07]} {[%emt 00:00:08]} 7. Bxe7 {[%clk 00:59:13]}
{[%emt 00:00:06]} Qxe7 {[%clk 01:02:35]} {[%emt 00:00:02]} 8. Bd3 {[%clk
00:59:29]} {[%emt 00:00:14]} f5 {[%clk 00:58:44]} {[%emt 00:04:22]} 9. c4
{[%clk 00:59:36]} {[%emt 00:00:22]} O-O {[%clk 00:58:39]} {[%emt 00:00:36]} 10.
Qc2 {[%clk 00:59:29]} {[%emt 00:00:37]} c5 {[%clk 00:48:13]} {[%emt 00:10:55]}
11. dxc5 {[%clk 00:57:25]} {[%emt 00:02:35]} Qxc5 {[%clk 00:46:12]} {[%emt
00:02:31]} 12. O-O-O {[%clk 00:56:04]} {[%emt 00:01:50]} Nc6 {[%clk 00:45:29]}
{[%emt 00:01:14]} 13. Nb3 {[%clk 00:55:19]} {[%emt 00:01:15]} Qe7 {[%clk
00:45:08]} {[%emt 00:00:51]} 14. Qd2 {[%clk 00:54:59]} {[%emt 00:00:50]} Nb4
{[%clk 00:43:01]} {[%emt 00:02:37]} 15. a3 {[%clk 00:52:50]} {[%emt 00:02:39]}
Nxd3+ {[%clk 00:42:46]} {[%emt 00:00:45]} 16. Qxd3 {[%clk 00:53:14]} {[%emt
00:00:06]} d5 {[%clk 00:40:59]} {[%emt 00:02:16]} 17. Kb1 {[%clk 00:51:27]}
{[%emt 00:02:18]} dxc4 {[%clk 00:37:50]} {[%emt 00:03:39]} 18. Qxc4 {[%clk
00:51:51]} {[%emt 00:00:06]} Rac8 {[%clk 00:38:06]} {[%emt 00:00:14]} 19. Qb5
{[%clk 00:50:39]} {[%emt 00:01:42]} Nf6 {[%clk 00:36:32]} {[%emt 00:02:03]} 20.
Qe5 {[%clk 00:45:29]} {[%emt 00:05:40]} Ng4 {[%clk 00:32:22]} {[%emt 00:04:40]}
21. Qg3 {[%clk 00:45:26]} {[%emt 00:00:33]} Be4+ {[%clk 00:32:38]} {[%emt
00:00:14]} 22. Ka2 {[%clk 00:45:48]} {[%emt 00:00:08]} e5 {[%clk 00:23:55]}
{[%emt 00:09:13]} 23. Nbd2 {[%clk 00:41:18]} {[%emt 00:05:00]} Bd5+ {[%clk
00:15:09]} {[%emt 00:09:17]} 24. Ka1 {[%clk 00:41:26]} {[%emt 00:00:22]} h5
{[%clk 00:11:57]} {[%emt 00:03:42]} 25. Nh4 {[%clk 00:40:21]} {[%emt 00:01:35]}
Qf6 {[%clk 00:10:53]} {[%emt 00:01:33]} 26. h3 {[%clk 00:39:48]} {[%emt
00:01:04]} Nh6 {[%clk 00:08:18]} {[%emt 00:03:04]} 27. Nb1 {[%clk 00:37:07]}
{[%emt 00:03:11]} Bf7 {[%clk 00:08:05]} {[%emt 00:00:44]} 28. Rd7 {[%clk
00:31:44]} {[%emt 00:05:53]} Qe6 {[%clk 00:07:49]} {[%emt 00:00:45]} 29. Rxf7
{[%clk 00:32:03]} {[%emt 00:00:12]} Rxf7 {[%clk 00:08:03]} {[%emt 00:00:15]} 30.
Ng6 {[%clk 00:30:56]} {[%emt 00:01:38]} Rf6 {[%clk 00:06:31]} {[%emt 00:02:02]}
31. Nxe5 {[%clk 00:31:11]} {[%emt 00:00:15]} Nf7 {[%clk 00:06:52]} {[%emt
00:00:09]} 32. Nf3 {[%clk 00:31:16]} {[%emt 00:00:25]} Qe4 {[%clk 00:06:22]}
{[%emt 00:01:00]} 33. Rd1 {[%clk 00:30:45]} {[%emt 00:01:00]} f4 {[%clk
00:05:21]} {[%emt 00:01:31]} 34. Qh4 {[%clk 00:30:49]} {[%emt 00:00:27]} Qg6
{[%clk 00:05:16]} {[%emt 00:00:34]} 35. exf4 {[%clk 00:30:43]} {[%emt
00:00:37]} Rfc6 {[%clk 00:04:51]} {[%emt 00:00:54]} 36. Qe7 {[%clk 00:29:51]}
{[%emt 00:01:22]} Qxg2 {[%clk 00:04:24]} {[%emt 00:00:58]} 37. Nd4 {[%clk
00:29:36]} {[%emt 00:00:45]} Rd6 {[%clk 00:04:04]} {[%emt 00:00:49]} 38. Qe3
{[%clk 00:29:10]} {[%emt 00:00:56]} Rcd8 {[%clk 00:03:49]} {[%emt 00:00:46]} 39.
Rd2 {[%clk 00:29:21]} {[%emt 00:00:19]} Qg6 {[%clk 00:03:30]} {[%emt 00:00:48]}
40. Nf3 {[%clk 00:28:26]} {[%emt 00:01:26]} Rxd2 {[%clk 00:03:49]} {[%emt
00:00:11]} 41. Nbxd2 {[%clk 00:28:30]} {[%emt 00:00:25]} Qc6 {[%clk 00:03:57]}
{[%emt 00:00:23]} 42. Qe7 {[%clk 00:27:51]} {[%emt 00:01:10]} Qd6 {[%clk
00:03:58]} {[%emt 00:00:28]} 43. Qxa7 {[%clk 00:28:05]} {[%emt 00:00:17]} Rc8
{[%clk 00:03:59]} {[%emt 00:00:28]} 44. Qa4 {[%clk 00:27:07]} {[%emt 00:01:29]}
Qe6 {[%clk 00:03:51]} {[%emt 00:00:37]} 45. Qb5 {[%clk 00:26:31]} {[%emt
00:01:07]} Qxh3 {[%clk 00:03:59]} {[%emt 00:00:21]} 46. Qd5 {[%clk 00:26:46]}
{[%emt 00:00:14]} Rd8 {[%clk 00:03:46]} {[%emt 00:00:45]} 47. Qb3 {[%clk
00:27:05]} {[%emt 00:00:09]} Qf5 {[%clk 00:03:42]} {[%emt 00:00:35]} 48. Qxb6
{[%clk 00:26:06]} {[%emt 00:01:31]} Qxf4 {[%clk 00:03:53]} {[%emt 00:00:18]} 49.
Qe6 {[%clk 00:26:22]} {[%emt 00:00:11]} h4 {[%clk 00:03:34]} {[%emt 00:00:52]}
50. Ka2 {[%clk 00:26:13]} {[%emt 00:00:39]} Kh8 {[%clk 00:03:27]} {[%emt
00:00:36]} 51. Qg6 {[%clk 00:22:22]} {[%emt 00:04:20]} Rd5 {[%clk 00:02:40]}
{[%emt 00:01:19]} 52. Qe6 {[%clk 00:21:10]} {[%emt 00:01:41]} Rd6 {[%clk
00:02:28]} {[%emt 00:00:42]} 53. Qc8+ {[%clk 00:21:14]} {[%emt 00:00:26]} Kh7
{[%clk 00:02:33]} {[%emt 00:00:25]} 54. Qc2+ {[%clk 00:20:35]} {[%emt
00:01:09]} Rg6 {[%clk 00:02:42]} {[%emt 00:00:21]} 55. Qd3 {[%clk 00:20:01]}
{[%emt 00:01:05]} Ne5 {[%clk 00:02:11]} {[%emt 00:01:01]} 56. Nxe5 {[%clk
00:20:26]} {[%emt 00:00:06]} Qxe5 {[%clk 00:02:39]} {[%emt 00:00:02]} 57. Nf3
{[%clk 00:19:54]} {[%emt 00:01:01]} Qh5 {[%clk 00:02:59]} {[%emt 00:00:10]} 58.
Ng1 {[%clk 00:19:46]} {[%emt 00:00:39]} Qg5 {[%clk 00:02:00]} {[%emt 00:01:29]}
59. Nh3 {[%clk 00:19:47]} {[%emt 00:00:28]} Qf6 {[%clk 00:02:15]} {[%emt
00:00:16]} 60. Ka1 {[%clk 00:19:48]} {[%emt 00:00:29]} Kh8 {[%clk 00:02:34]}
{[%emt 00:00:10]} 61. Qe4 {[%clk 00:19:55]} {[%emt 00:00:23]} Qd6 {[%clk
00:00:54]} {[%emt 00:02:11]} 62. Qe8+ {[%clk 00:17:43]} {[%emt 00:02:42]} Kh7
{[%clk 00:01:01]} {[%emt 00:00:22]} 63. Qe4 {[%clk 00:18:09]} {[%emt 00:00:04]}
Qd1+ {[%clk 00:01:23]} {[%emt 00:00:09]} 64. Ka2 {[%clk 00:18:33]} {[%emt
00:00:07]} Qg4 {[%clk 00:01:14]} {[%emt 00:00:39]} 65. Nf4 {[%clk 00:18:56]}
{[%emt 00:00:07]} h3 {[%clk 00:01:24]} {[%emt 00:00:20]} 66. f3 {[%clk
00:19:21]} {[%emt 00:00:05]} Qg3 {[%clk 00:01:17]} {[%emt 00:00:37]} 67. Nxg6
{[%clk 00:17:53]} {[%emt 00:01:58]} Qxg6 {[%clk 00:01:41]} {[%emt 00:00:06]} 68.
Qh4+ {[%clk 00:18:20]} {[%emt 00:00:02]} Qh6 {[%clk 00:02:06]} {[%emt
00:00:06]} 69. Qe4+ {[%clk 00:18:46]} {[%emt 00:00:04]} g6 {[%clk 00:02:00]}
{[%emt 00:00:36]} 70. Qe7+ {[%clk 00:19:08]} {[%emt 00:00:07]} 1/2-1/2

[Event "Latvijas 2022. gada jauniešu čempionāta fināls"]
[Site "Riga, Latvia"]
[Date "2022.06.15"]
[Round "6.20"]
[White "Karasevics, Aleksandrs"]
[Black "Aleidzans, Vadims"]
[Result "1-0"]
[TimeControl "3600+30"]
[WhiteElo "1427"]
[BlackElo "1367"]

1. e4 {[%clk 01:00:24]} {[%emt 00:00:35]} e5 {[%clk 01:00:38]} {[%emt
00:00:22]} 2. Nf3 {[%clk 01:00:31]} {[%emt 00:00:24]} Nc6 {[%clk 01:01:00]}
{[%emt 00:00:07]} 3. Bb5 {[%clk 01:00:38]} {[%emt 00:00:24]} a6 {[%clk
01:01:13]} {[%emt 00:00:16]} 4. Ba4 {[%clk 01:01:03]} {[%emt 00:00:05]} Nf6
{[%clk 01:01:36]} {[%emt 00:00:07]} 5. O-O {[%clk 01:01:26]} {[%emt 00:00:07]}
Be7 {[%clk 01:01:57]} {[%emt 00:00:08]} 6. d3 {[%clk 01:01:40]} {[%emt
00:00:17]} b5 {[%clk 01:02:16]} {[%emt 00:00:11]} 7. Bb3 {[%clk 01:01:58]}
{[%emt 00:00:12]} d6 {[%clk 01:02:38]} {[%emt 00:00:07]} 8. h3 {[%clk
01:02:15]} {[%emt 00:00:14]} Na5 {[%clk 01:03:02]} {[%emt 00:00:07]} 9. a4
{[%clk 01:01:07]} {[%emt 00:01:38]} Nxb3 {[%clk 01:03:12]} {[%emt 00:00:19]} 10.
cxb3 {[%clk 01:01:29]} {[%emt 00:00:09]} Bb7 {[%clk 01:01:56]} {[%emt
00:01:46]} 11. Re1 {[%clk 00:55:11]} {[%emt 00:06:47]} O-O {[%clk 01:01:59]}
{[%emt 00:00:27]} 12. Bg5 {[%clk 00:55:05]} {[%emt 00:00:36]} h6 {[%clk
01:02:17]} {[%emt 00:00:13]} 13. Bh4 {[%clk 00:55:25]} {[%emt 00:00:09]} Qd7
{[%clk 00:55:00]} {[%emt 00:07:47]} 14. Bg3 {[%clk 00:51:12]} {[%emt 00:04:43]}
c5 {[%clk 00:40:19]} {[%emt 00:15:11]} 15. Na3 {[%clk 00:50:10]} {[%emt
00:01:32]} Nh7 {[%clk 00:36:36]} {[%emt 00:04:13]} 16. Nh4 {[%clk 00:37:23]}
{[%emt 00:13:17]} Bxh4 {[%clk 00:30:38]} {[%emt 00:06:28]} 17. Bxh4 {[%clk
00:37:48]} {[%emt 00:00:05]} f5 {[%clk 00:30:45]} {[%emt 00:00:23]} 18. f3
{[%clk 00:37:46]} {[%emt 00:00:32]} g5 {[%clk 00:24:36]} {[%emt 00:06:38]} 19.
Bf2 {[%clk 00:37:18]} {[%emt 00:00:58]} f4 {[%clk 00:19:12]} {[%emt 00:05:55]}
20. axb5 {[%clk 00:37:07]} {[%emt 00:00:41]} axb5 {[%clk 00:19:34]} {[%emt
00:00:08]} 21. b4 {[%clk 00:37:31]} {[%emt 00:00:07]} Rfc8 {[%clk 00:02:51]}
{[%emt 00:17:12]} 22. bxc5 {[%clk 00:32:18]} {[%emt 00:05:43]} dxc5 {[%clk
00:03:12]} {[%emt 00:00:08]} 23. Qb3+ {[%clk 00:32:18]} {[%emt 00:00:31]} Kf8
{[%clk 00:02:09]} {[%emt 00:01:34]} 24. Qxb5 {[%clk 00:31:20]} {[%emt
00:01:28]} Qxb5 {[%clk 00:02:28]} {[%emt 00:00:11]} 25. Nxb5 {[%clk 00:31:39]}
{[%emt 00:00:11]} Ba6 {[%clk 00:01:02]} {[%emt 00:01:56]} 26. Nd6 {[%clk
00:31:46]} {[%emt 00:00:23]} Rc6 {[%clk 00:01:27]} {[%emt 00:00:04]} 27. Nc4
{[%clk 00:32:08]} {[%emt 00:00:08]} Re8 {[%clk 00:01:36]} {[%emt 00:00:21]} 28.
Bxc5+ {[%emt 00:01:59]} Rxc5 {[%clk 00:01:46]} {[%emt 00:00:19]} 29. Rxa6
{[%clk 00:30:59]} {[%emt 00:00:12]} Rd8 {[%clk 00:01:57]} {[%emt 00:00:18]} 30.
Rxh6 {[%clk 00:31:13]} {[%emt 00:00:15]} Rxd3 {[%clk 00:02:05]} {[%emt
00:00:23]} 31. Nxe5 {[%clk 00:30:59]} {[%emt 00:00:45]} Rd2 {[%clk 00:01:37]}
{[%emt 00:00:58]} 32. Kh2 {[%clk 00:29:17]} {[%emt 00:02:12]} Rcc2 {[%clk
00:01:16]} {[%emt 00:00:50]} 33. Rg1 {[%emt 00:00:42]} g4 {[%clk 00:01:30]}
{[%emt 00:00:06]} 34. hxg4 {[%clk 00:27:45]} {[%emt 00:02:00]} Ng5 {[%clk
00:01:27]} {[%emt 00:00:33]} 35. Rf6+ {[%clk 00:28:01]} {[%emt 00:00:14]} Ke7
{[%clk 00:01:44]} {[%emt 00:00:13]} 36. Rxf4 {[%clk 00:27:53]} {[%emt
00:00:38]} 1-0

[Event "Latvijas 2022. gada jauniešu čempionāta fināls"]
[Site "Riga, Latvia"]
[Date "2022.06.15"]
[Round "6.21"]
[White "Krasilnikovs, Aleksandrs"]
[Black "Zajakins, Artjoms"]
[Result "0-1"]
[TimeControl "3600+30"]
[WhiteElo "1339"]
[BlackElo "1596"]

1. d4 {[%clk 01:00:55]} {[%emt 00:00:03]} Nf6 {[%clk 01:00:53]} {[%emt
00:00:07]} 2. Nf3 {[%clk 01:01:19]} {[%emt 00:00:07]} g6 {[%clk 01:01:07]}
{[%emt 00:00:16]} 3. g3 {[%clk 01:01:44]} {[%emt 00:00:04]} Bg7 {[%clk
01:01:27]} {[%emt 00:00:11]} 4. Bg2 {[%clk 01:02:11]} {[%emt 00:00:03]} O-O
{[%clk 01:01:17]} {[%emt 00:00:40]} 5. O-O {[%clk 01:02:36]} {[%emt 00:00:05]}
d5 {[%clk 01:00:44]} {[%emt 00:01:03]} 6. c4 {[%clk 01:02:13]} {[%emt
00:00:52]} c6 {[%clk 00:59:51]} {[%emt 00:01:23]} 7. Nc3 {[%clk 01:02:20]}
{[%emt 00:00:23]} dxc4 {[%clk 00:56:56]} {[%emt 00:03:26]} 8. Ne5 {[%clk
01:02:40]} {[%emt 00:00:10]} Ng4 {[%clk 00:51:18]} {[%emt 00:06:08]} 9. Nxg4
{[%clk 00:58:48]} {[%emt 00:04:22]} Bxg4 {[%clk 00:51:09]} {[%emt 00:00:39]} 10.
d5 {[%clk 00:58:57]} {[%emt 00:00:19]} cxd5 {[%clk 00:44:41]} {[%emt 00:06:59]}
11. Bxd5 {[%clk 00:58:14]} {[%emt 00:01:12]} Bxc3 {[%clk 00:43:32]} {[%emt
00:01:40]} 12. bxc3 {[%clk 00:58:12]} {[%emt 00:00:33]} Bxe2 {[%clk 00:43:07]}
{[%emt 00:00:55]} 13. Bxf7+ {[%clk 00:58:00]} {[%emt 00:00:41]} Kxf7 {[%clk
00:40:34]} {[%emt 00:03:04]} 14. Qxe2 {[%clk 00:58:16]} {[%emt 00:00:14]} Qd3
{[%clk 00:40:29]} {[%emt 00:00:34]} 15. Qe3 {[%clk 00:46:20]} {[%emt 00:12:26]}
Qxe3 {[%clk 00:39:05]} {[%emt 00:01:56]} 16. Bxe3 {[%clk 00:46:44]} {[%emt
00:00:05]} Nc6 {[%clk 00:39:16]} {[%emt 00:00:18]} 17. Rad1 {[%clk 00:42:29]}
{[%emt 00:04:46]} Rfd8 {[%clk 00:37:34]} {[%emt 00:02:12]} 18. f4 {[%clk
00:41:40]} {[%emt 00:01:18]} e6 {[%clk 00:31:21]} {[%emt 00:06:43]} 19. a4
{[%clk 00:39:06]} {[%emt 00:03:04]} b6 {[%clk 00:28:02]} {[%emt 00:03:50]} 20.
Kf2 {[%clk 00:38:04]} {[%emt 00:01:29]} Rd5 {[%clk 00:26:36]} {[%emt 00:01:58]}
21. Rd2 {[%clk 00:35:37]} {[%emt 00:02:56]} Rxd2+ {[%clk 00:25:53]} {[%emt
00:01:15]} 22. Bxd2 {[%clk 00:36:05]} {[%emt 00:00:02]} Rd8 {[%clk 00:26:11]}
{[%emt 00:00:12]} 23. Ke2 {[%clk 00:35:52]} {[%emt 00:00:42]} Rd5 {[%clk
00:26:02]} {[%emt 00:00:40]} 24. g4 {[%clk 00:31:27]} {[%emt 00:04:54]} Ra5
{[%clk 00:24:59]} {[%emt 00:01:34]} 25. h4 {[%clk 00:30:03]} {[%emt 00:01:54]}
h5 {[%clk 00:23:00]} {[%emt 00:02:28]} 26. g5 {[%clk 00:30:00]} {[%emt
00:00:32]} Rxa4 {[%clk 00:22:04]} {[%emt 00:01:27]} 27. Rb1 {[%clk 00:30:14]}
{[%emt 00:00:16]} Ra5 {[%clk 00:21:48]} {[%emt 00:00:46]} 28. Be3 {[%clk
00:30:05]} {[%emt 00:00:39]} Rd5 {[%clk 00:19:50]} {[%emt 00:02:29]} 29. Kf3
{[%clk 00:25:36]} {[%emt 00:04:59]} b5 {[%clk 00:17:34]} {[%emt 00:02:46]} 30.
Ra1 {[%clk 00:24:40]} {[%emt 00:01:26]} a5 {[%clk 00:17:13]} {[%emt 00:00:50]}
31. Ke4 {[%clk 00:24:23]} {[%emt 00:00:47]} Ke7 {[%clk 00:16:17]} {[%emt
00:01:26]} 32. Bb6 {[%clk 00:23:43]} {[%emt 00:01:09]} b4 {[%clk 00:16:12]}
{[%emt 00:00:36]} 33. cxb4 {[%clk 00:23:43]} {[%emt 00:00:31]} axb4 {[%clk
00:16:29]} {[%emt 00:00:13]} 34. Rc1 {[%clk 00:24:00]} {[%emt 00:00:12]} c3
{[%clk 00:13:45]} {[%emt 00:03:16]} 35. Be3 {[%clk 00:23:55]} {[%emt 00:00:34]}
Kd6 {[%clk 00:12:26]} {[%emt 00:01:48]} 36. Rb1 {[%clk 00:23:40]} {[%emt
00:00:43]} c2 {[%clk 00:10:09]} {[%emt 00:02:49]} 37. Rb2 {[%clk 00:23:56]}
{[%emt 00:00:14]} Rd4+ {[%clk 00:08:58]} {[%emt 00:01:41]} 38. Bxd4 {[%clk
00:23:33]} {[%emt 00:00:53]} c1=Q {[%clk 00:09:11]} {[%emt 00:00:18]} 39. Be5+
{[%clk 00:23:36]} {[%emt 00:00:25]} Nxe5 {[%clk 00:08:57]} {[%emt 00:00:45]} 40.
fxe5+ {[%clk 00:24:03]} {[%emt 00:00:02]} Kc5 {[%clk 00:09:10]} {[%emt
00:00:17]} 0-1